Cogmind - Beta 9.3 @@@ ROGUE MODE // 2019.12.22 @ 12:11:09 // Winter2019/RPGLIKE Player: GridBugBear Result: Destroyed by XU-R67(z) with Zionite Laser-S Performance ------------- Evolutions (4) 2000 Regions Visited (14) 2800 Robots Destroyed (128) 640 Value Destroyed (3524) 3524 Prototype IDs (19) 380 Alien Tech Used (0) 0 Bonus (2372) 2372 TOTAL SCORE: 11716 Bonus ------- High Alert Combat Kills 511 Follower Combat Kills 407 Met Data Miner 300 Met Imprinter 300 Destroyed Z-Imprinter 1000 Friendly Fire -146 Cogmind --------- Core Integrity 0/1050 Matter 273/300 Energy 299/300 System Corruption 0% Temperature Cool (9) Movement Rolling (90) Ox1 Location -6/Deep Caves Parts ------- > --- POWER (2) -------- Zionite Light DM Reactor Zionite Light DM Reactor > --- PROPULSION (3) --- Wheel > --- UTILITY (3) ------ Targeting Computer Core Analyzer Advanced Phase Shifter > --- WEAPON (7) ------- Tesla Rifle Tesla Rifle Beamcaster Beamcaster Zionite Laser-M Zionite Laser-M Improved Proton Missile Launcher > --- INVENTORY (3) ---- Zionite Metafield Generator Experimental Transmission Jammer Zionite Phaser-S Peak State ------------ > --- POWER ------------ Zionite Light DM Reactor Zionite Light DM Reactor > --- PROPULSION ------- Wheel Wheel > --- UTILITY ---------- Targeting Computer Core Analyzer Advanced Phase Shifter > --- WEAPON ----------- Tesla Rifle Tesla Rifle Beamcaster Beamcaster Zionite Laser-M Zionite Laser-M Zionite Laser-M > --- INVENTORY -------- Zionite Metafield Generator Experimental Transmission Jammer Improved Proton Missile Launcher [Rating: 80] Favorites ----------- Power Micro Nuclear Core Engine Light Angular Momentum Engine Power Core Micro Nuclear Core Reactor Zionite Light DM Reactor Propulsion Wheel Wheel Wheel Hover Unit Cooled Airjet Utility Core Analyzer Device Transmission Jammer Processor Core Analyzer Weapon Beamcaster Energy Gun Beamcaster Ballistic Gun Assault Rifle Launcher Improved Proton Missile Launcher Build | -11 -10 -10 -10 -9 -8 -7 -7 -7 -6 -6 -6 -6 -6 -6 ------- Run | Scr Mat Min Exi Min Mat Fac Low Dat Pro Fac Low Low Zio Dee Slots Evolved 11 | 2 . . 2 . 1 2 . . 1 1 1 . 1 . Power 1 | . . . . . . . . . . 1 . . . . Propulsion 2 | 1 . . . . . . . . . . . . 1 . Utility 2 | . . . . . . 1 . . 1 . . . . . Weapon 6 | 1 . . 2 . 1 1 . . . . 1 . . . Parts Attached 65 | 6 5 4 . 2 6 8 . . 6 8 2 . 4 14 Power 10 | 1 . . . . 2 1 . . . 2 2 . . 2 Engine 5 | 1 . . . . 1 . . . . 1 2 . . . Core 3 | . . . . . 1 1 . . . 1 . . . . Reactor 2 | . . . . . . . . . . . . . . 2 Propulsion 8 | 2 1 . . 1 . 2 . . . 2 . . . . Treads . | . . . . . . . . . . . . . . . Leg . | . . . . . . . . . . . . . . . Wheel 7 | 2 1 . . 1 . 2 . . . 1 . . . . Hover 1 | . . . . . . . . . . 1 . . . . Flight . | . . . . . . . . . . . . . . . Utility 11 | . 1 . . . . 2 . . . 2 . . 2 4 Device 9 | . 1 . . . . 1 . . . 1 . . 2 4 Storage . | . . . . . . . . . . . . . . . Processor 2 | . . . . . . 1 . . . 1 . . . . Hackware . | . . . . . . . . . . . . . . . Protection . | . . . . . . . . . . . . . . . Artifact . | . . . . . . . . . . . . . . . Weapon 36 | 3 3 4 . 1 4 3 . . 6 2 . . 2 8 Energy Gun 26 | 2 2 2 . . 4 3 . . 5 1 . . 1 6 Energy Cannon . | . . . . . . . . . . . . . . . Ballistic Gun 1 | 1 . . . . . . . . . . . . . . Ballistic Cannon . | . . . . . . . . . . . . . . . Launcher 9 | . 1 2 . 1 . . . . 1 1 . . 1 2 Special Weapon . | . . . . . . . . . . . . . . . Impact Weapon . | . . . . . . . . . . . . . . . Slashing Weapon . | . . . . . . . . . . . . . . . Piercing Weapon . | . . . . . . . . . . . . . . . Special Melee Weapon . | . . . . . . . . . . . . . . . Unidentified Prototypes 7 | . . . . . 1 . . . . 1 . . . 5 Parts Lost 4 | . . . . . 1 . . . 1 . . . . 2 Power . | . . . . . . . . . . . . . . . Propulsion 1 | . . . . . . . . . . . . . . 1 Utility . | . . . . . . . . . . . . . . . Weapon 3 | . . . . . 1 . . . 1 . . . . 1 Highest Loss Streak 1 | . . . . . 1 . . . 1 . . . . 1 Average Slot Usage (%) 93 | . 99 100 75 85 94 99 100 100 93 96 92 92 92 92 Engine 5 | . 16 16 12 12 10 . . . . . 4 7 6 1 Core 5 | . . . . . 1 10 9 9 8 10 9 7 6 1 Reactor 1 | . . . . . . . . . . . . . . 9 Wheel 19 | . 33 33 25 25 23 21 18 18 16 15 14 14 13 12 Device 9 | . 15 16 12 12 11 10 9 9 8 7 7 7 6 5 Processor 7 | . . . . . . . 9 9 8 12 14 14 13 13 Energy Gun 42 | . 32 31 25 25 40 54 54 54 45 48 42 42 43 44 Launcher 1 | . . 1 . 10 5 . . . 4 . . . . 1 Naked Turns . | . . . . . . . . . . . . . . . Heaviest Build 61 | 8 10 10 10 13 23 26 26 26 36 46 47 46 48 61 Greatest Support 50 | 32 32 26 26 26 20 30 30 30 35 45 45 45 45 50 Greatest Overweight (x) 1 | . . . . . 1 1 . . 1 1 1 1 1 1 Average Overweight (x) . | . . . . . . . . . . . . 1 . 1 Largest Inventory Capacity 3 | 1 1 1 1 1 1 1 1 1 1 1 1 1 1 3 Average Capacity 1 | 1 1 1 1 1 1 1 1 1 1 1 1 1 1 2 Most Carried 3 | 1 1 1 1 1 1 1 1 1 1 1 1 1 1 3 Average Carried 1 | . . 1 1 . 1 1 1 1 . 1 1 1 . 2 Final Capacity 3 | 1 1 1 1 1 1 1 1 1 1 1 1 1 1 3 Final Carried 3 | 1 1 1 1 1 1 1 1 1 1 1 1 1 1 3 Class Distribution -------------------- 36% | Executioner 23% | Mutant 10% | Tank 8% | Derelict-Executioner 7% | Scavenger-Executioner 6% | Commander-Executioner 5% | Scavenger-Tank Dominant Class ---------------- Mutant | -10/Materials Mutant | -10/Mines Mutant | -10/Exiles Mutant | -9/Mines Scavenger-Tank | -8/Materials Tank | -7/Factory Executioner | -7/Lower Caves Executioner | -7/Data Miner Executioner | -6/Proximity Caves Executioner | -6/Factory Executioner | -6/Lower Caves Executioner | -6/Lower Caves Executioner | -6/Zion Scavenger-Executioner | -6/Deep Caves Resources | -11 -10 -10 -10 -9 -8 -7 -7 -7 -6 -6 -6 -6 -6 -6 ----------- Run | Scr Mat Min Exi Min Mat Fac Low Dat Pro Fac Low Low Zio Dee Matter Collected 1052 | 260 57 36 . 193 69 80 . . 36 78 64 . 40 139 Remotely . | . . . . . . . . . . . . . . . Salvage Created 4770 | . 280 99 . 46 696 1099 . . 693 1491 84 105 . 177 Parts 238 | . 18 16 . 3 31 35 . . 30 79 2 9 . 15 Haulers Intercepted 7 | . 2 . . . 1 1 . . . 3 . . . . Recyclers Shooed 4 | . 1 . . . . 2 . . 1 . . . . . Parts Field Recycled . | . . . . . . . . . . . . . . . Retrieved Matter . | . . . . . . . . . . . . . . . Parts Self-Destructed 51 | . . . . . . . . . 42 . . 7 2 . Prevented 10 | . . . . . . . . . 6 . 2 2 . . Kills | -11 -10 -10 -10 -9 -8 -7 -7 -7 -6 -6 -6 -6 -6 -6 ------- Run | Scr Mat Min Exi Min Mat Fac Low Dat Pro Fac Low Low Zio Dee Combat Hostiles Destroyed 100 | . 9 9 . 12 10 13 . . 16 19 1 2 . 9 Guns 74 | . 7 4 . 4 10 13 . . 13 13 1 2 . 7 AOE 21 | . 2 5 . 8 . . . . . 5 . . . 1 Classes Destroyed 18 | . 5 . . 1 3 2 . . 2 4 . . . 1 Worker 4 | . 1 . . . . 1 . . . 2 . . . . Builder 3 | . . . . . 1 . . . . 2 . . . . Hauler 7 | . 2 . . . 1 1 . . . 3 . . . . Recycler 6 | . . . . . 3 1 . . 1 1 . . . . Operator 2 | . 1 . . . . 1 . . . . . . . . Watcher 1 | . . . . . . . . . . 1 . . . . Swarmer 29 | . 6 9 . 2 . . . . 9 3 . . . . Grunt 25 | . 3 . . . 7 8 . . . 7 . . . . Brawler 2 | . . . . . . . . . 2 . . . . . Duelist 2 | . . . . . . 1 . . . 1 . . . . Protector 1 | . . . . . . . . . . 1 . . . . Sentry 13 | . . . . . 3 3 . . 4 2 . 1 . . Demolisher 1 | . . . . . . . . . . 1 . . . . Hunter 6 | . . . . . . . . . . 4 1 1 . . Programmer 1 | . . . . . . 1 . . . . . . . . Behemoth 1 | . . . . . . . . . 1 . . . . . Z-Technician 5 | . . . . . . . . . . . . . . 5 Z-Light 2 | . . . . . . . . . . . . . . 2 Assembled 16 | . . . . 10 . . . . . . . . . 6 Best Kill Streak 10 | . 5 6 . 7 10 9 . . 5 8 1 1 . 5 Combat Bots Only 7 | . 4 6 . 7 5 5 . . 4 6 1 1 . 3 Max Kills in Single Turn 5 | . 2 2 . 3 2 2 . . 2 3 1 1 . 5 Gunslinging 1 | . 1 1 . . . 1 . . 1 1 . . . 1 Exploded 3 | . 2 2 . 3 . . . . . 2 . . . 1 Melee . | . . . . . . . . . . . . . . . Uniques/NPCs Destroyed 1 | . . . . . . . . . . . . . . 1 Z-Imprinter (-6/Deep Caves) Combat | -11 -10 -10 -10 -9 -8 -7 -7 -7 -6 -6 -6 -6 -6 -6 -------- Run | Scr Mat Min Exi Min Mat Fac Low Dat Pro Fac Low Low Zio Dee Damage Taken 5760 | . 270 313 . 359 484 299 . . 1243 1064 . . . 1728 Core 4627 | . 215 249 . 288 390 235 . . 996 845 . . . 1409 Absorbed by Shields . | . . . . . . . . . . . . . . . Redirected to Core 3909 | . 155 195 . 238 319 213 . . 827 763 . . . 1199 Core Remaining (%) 87 | 100 . . . 58 91 . . . 100 . . . . . Volleys Fired 236 | . 33 13 . 23 34 33 . . 37 29 1 2 . 31 Largest 7 | . 2 2 . 2 5 5 . . 6 6 6 6 . 7 Hottest 501 | . 100 100 . 100 286 303 . . 407 424 424 424 . 501 Shots Fired 797 | . 65 22 . 32 89 159 . . 173 153 6 12 . 86 Gun 768 | . 64 18 . 18 89 159 . . 173 149 6 12 . 80 Cannon . | . . . . . . . . . . . . . . . Launcher 29 | . 1 4 . 14 . . . . . 4 . . . 6 Special . | . . . . . . . . . . . . . . . Kinetic . | . . . . . . . . . . . . . . . Thermal 630 | . 64 18 . 18 86 127 . . 138 99 4 8 . 68 Explosive 19 | . 1 4 . 14 . . . . . . . . . . Electromagnetic 148 | . . . . . 3 32 . . 35 54 2 4 . 18 Robot Hit Streak 30 | . 16 13 . 7 25 11 . . 22 30 18 23 . 25 Robot Miss Streak 5 | . 2 1 . 5 3 2 . . 4 2 . . . 2 Penetration Max . | . . . . . . . . . . . . . . . Secondary Targets 21 | . 2 1 . . 1 1 . . 6 6 . . . 4 Max Gunslinging Chain 2 | . 1 1 . . 1 1 . . 1 2 . . . 2 Shots Hit Robots 532 | . 46 18 . 15 65 96 . . 120 111 4 5 . 52 Core Hits 253 | . 20 9 . 26 33 36 . . 42 59 2 4 . 22 Critical Hits 1 | . . . . . . . . . . 1 . . . . Critical Kills . | . . . . . . . . . . . . . . . Critical Parts Destroyed 1 | . . . . . . . . . . 1 . . . . Melee Attacks . | . . . . . . . . . . . . . . . Impact . | . . . . . . . . . . . . . . . Slashing . | . . . . . . . . . . . . . . . Piercing . | . . . . . . . . . . . . . . . Sneak Attacks . | . . . . . . . . . . . . . . . Combat Hostiles . | . . . . . . . . . . . . . . . Follow-up Attacks . | . . . . . . . . . . . . . . . Damage Inflicted 12843 | . 710 474 . 612 952 1475 . . 1972 3033 97 113 . 3405 Guns 8624 | . 540 187 . 115 952 1475 . . 1866 2478 97 113 . 801 Cannons . | . . . . . . . . . . . . . . . Explosions 4204 | . 170 287 . 497 . . . . 102 544 . . . 2604 Melee . | . . . . . . . . . . . . . . . Ramming 15 | . . . . . . . . . 4 11 . . . . Kinetic . | . . . . . . . . . . . . . . . Thermal 8818 | . 540 187 . 115 915 1031 . . 1559 1498 41 20 . 2912 Explosive 954 | . 170 287 . 497 . . . . . . . . . . Electromagnetic 3056 | . . . . . 37 444 . . 409 1524 56 93 . 493 Impact . | . . . . . . . . . . . . . . . Slashing . | . . . . . . . . . . . . . . . Piercing . | . . . . . . . . . . . . . . . Highest Corruption 2 | . . . . . . . . . 2 1 1 1 1 . Average Corruption 1 | . . . . . . . . . 2 1 1 1 1 . Corruption Purged . | . . . . . . . . . . . . . . . Effects 15 | . . . . . . . . . 7 4 1 2 1 . Message Errors 3 | . . . . . . . . . 1 . . 1 1 . Heat Flow Errors 2 | . . . . . . . . . 2 . . . . . Energy Discharges 3 | . . . . . . . . . 1 1 . 1 . . Data Loss (minor) 1 | . . . . . . . . . . . 1 . . . Targeting Errors 6 | . . . . . . . . . 3 3 . . . . Overload Shots 3 | . . . . . . . . . . . . . . 3 Effects 1 | . . . . . . . . . . . . . . 1 Short Circuit 1 | . . . . . . . . . . . . . . 1 Overflow Damage 558 | . . 8 . . . . . . . . . . . 550 Projectiles . | . . . . . . . . . . . . . . . Explosions 558 | . . 8 . . . . . . . . . . . 550 Melee . | . . . . . . . . . . . . . . . Knockbacks . | . . . . . . . . . . . . . . . Impact . | . . . . . . . . . . . . . . . Kinetic . | . . . . . . . . . . . . . . . Secondary . | . . . . . . . . . . . . . . . Self-Inflicted Damage 357 | . . 21 . . . . . . 33 6 . . . 297 Shots 4 | . . 1 . . . . . . 1 1 . . . 1 Rammed 2 | . . . . . . . . . 1 1 . . . . Targets Rammed 2 | . . . . . . . . . 1 1 . . . . Kicked . | . . . . . . . . . . . . . . . Crushed . | . . . . . . . . . . . . . . . Highest Temperature 469 | . . . . . 469 279 . . 247 230 . . . 344 Average Temperature 93 | . . . . . 158 89 . . 57 67 . . . 90 Received Heat Transfer 1408 | . 78 . . . 297 111 . . 108 297 . . . 517 Effects 5 | . . . . . 3 . . . 2 . . . . . Shutdowns 1 | . . . . . 1 . . . . . . . . . Interference 2 | . . . . . . . . . 2 . . . . . Matter Decay 1 | . . . . . 1 . . . . . . . . . Damage (minor) 1 | . . . . . 1 . . . . . . . . . Siege Activations . | . . . . . . . . . . . . . . . Robots Corrupted 2 | . . . . . . . . . . 1 . . . 1 Combat Hostiles 2 | . . . . . . . . . . 1 . . . 1 Parts Fried 15 | . . . . . . . . . . 7 1 1 . 6 Impact Corruptions . | . . . . . . . . . . . . . . . Robots Melted 3 | . . . . . . . . . 3 . . . . . Combat Hostiles 3 | . . . . . . . . . 3 . . . . . Parts Melted 33 | . 1 1 . . 8 9 . . 9 3 2 . . . Heat Transferred 13731 | . 1461 555 . 333 2442 2368 . . 3282 2692 74 37 . 487 Parts Sabotaged . | . . . . . . . . . . . . . . . Parts Stolen . | . . . . . . . . . . . . . . . Parts Stripped . | . . . . . . . . . . . . . . . Power Chain Reactions 5 | . . . . . . . . . 1 3 . . . 1 Missiles Intercepted . | . . . . . . . . . . . . . . . Alert | -11 -10 -10 -10 -9 -8 -7 -7 -7 -6 -6 -6 -6 -6 -6 ------- Run | Scr Mat Min Exi Min Mat Fac Low Dat Pro Fac Low Low Zio Dee Peak Influence 958 | . 262 213 . 85 361 476 . . . 958 . . . . Average Influence 260 | . 91 139 . 72 210 298 . . . 559 . . . . Maximum Alert Level 3 | . 1 1 . . 1 2 . . . 3 . . . . Low Security (%) 50 | 100 86 74 . 100 44 23 . . . 13 . . . . Level 1 26 | . 13 25 . . 55 49 . . . 11 . . . . Level 2 15 | . . . . . . 27 . . . 40 . . . . Level 3 7 | . . . . . . . . . . 34 . . . . Level 4 . | . . . . . . . . . . . . . . . Level 5 . | . . . . . . . . . . . . . . . High Security . | . . . . . . . . . . . . . . . Max Security . | . . . . . . . . . . . . . . . Squads Dispatched 13 | . 3 . . . 4 3 . . . 3 . . . . Investigation 7 | . 2 . . . 3 1 . . . 1 . . . . Extermination 1 | . . . . . . 1 . . . . . . . . Reinforcement 4 | . 1 . . . 1 1 . . . 1 . . . . Assault 1 | . . . . . . . . . . 1 . . . . Garrison . | . . . . . . . . . . . . . . . Intercept . | . . . . . . . . . . . . . . . Construction Impeded . | . . . . . . . . . . . . . . . Haulers Reinforced . | . . . . . . . . . . . . . . . Stealth | -11 -10 -10 -10 -9 -8 -7 -7 -7 -6 -6 -6 -6 -6 -6 --------- Run | Scr Mat Min Exi Min Mat Fac Low Dat Pro Fac Low Low Zio Dee Distress Signals 4 | . . . . . 2 1 . . . 1 . . . . Communications Jammed 42 | . . . . . . . . . 1 41 . . . . Distress Signals 42 | . . . . . . . . . 1 41 . . . . Times Spotted 148 | . 19 9 . 14 17 20 . . 24 30 1 . . 14 Peak Tracking Total 7 | . 5 4 . 6 7 4 . . 5 7 1 . . 5 Tactical Retreats 7 | . 2 . . 1 . . . . 2 2 . . . . Traps | -11 -10 -10 -10 -9 -8 -7 -7 -7 -6 -6 -6 -6 -6 -6 ------- Run | Scr Mat Min Exi Min Mat Fac Low Dat Pro Fac Low Low Zio Dee Traps Triggered 4 | . 2 . . . . . . . 1 1 . . . . Indirectly . | . . . . . . . . . . . . . . . Trap Hack Attempts . | . . . . . . . . . . . . . . . Triggered . | . . . . . . . . . . . . . . . Disarmed . | . . . . . . . . . . . . . . . Reprogrammed . | . . . . . . . . . . . . . . . Reused . | . . . . . . . . . . . . . . . Traps Extracted . | . . . . . . . . . . . . . . . Installed . | . . . . . . . . . . . . . . . Triggered . | . . . . . . . . . . . . . . . Machines | -11 -10 -10 -10 -9 -8 -7 -7 -7 -6 -6 -6 -6 -6 -6 ---------- Run | Scr Mat Min Exi Min Mat Fac Low Dat Pro Fac Low Low Zio Dee Machines Disabled 13 | . . . . 1 . 2 . . 2 5 . . . 3 Max in Single Turn 2 | . . . . 1 . 1 . . 1 2 . . . 2 Garrison Access 1 | . . . . . . . . . . 1 . . . . Machines Sabotaged . | . . . . . . . . . . . . . . . Garrisons Compromised . | . . . . . . . . . . . . . . . Overloaded Fab Kills . | . . . . . . . . . . . . . . . Fab Network Shutdowns . | . . . . . . . . . . . . . . . Hacking | -11 -10 -10 -10 -9 -8 -7 -7 -7 -6 -6 -6 -6 -6 -6 --------- Run | Scr Mat Min Exi Min Mat Fac Low Dat Pro Fac Low Low Zio Dee Machines Accessed 22 | . 4 . 1 . 3 3 . 4 2 5 . . . . Terminals 12 | . 4 . . . 2 3 . . . 3 . . . . Fabricators 2 | . . . . . . . . . 1 1 . . . . Repair Stations . | . . . . . . . . . . . . . . . Recycling Units 1 | . . . . . . . . . 1 . . . . . Scanalyzers . | . . . . . . . . . . . . . . . Garrison Access 2 | . . . . . 1 . . . . 1 . . . . Total Hacks 74 | . 16 . 1 . 7 5 . 24 8 13 . . . . Successful 51 | . 9 . 1 . 1 3 . 24 3 10 . . . . Failed 23 | . 7 . . . 6 2 . . 5 3 . . . . Catastrophic 3 | . . . . . 1 2 . . . . . . . . Database Lockouts . | . . . . . . . . . . . . . . . Manual 29 | . 11 . 1 . 1 2 . . 2 8 . . 4 . Terminals 36 | . 16 . . . 6 5 . . . 9 . . . . Fabricators 7 | . . . . . . . . . 4 3 . . . . Repair Stations . | . . . . . . . . . . . . . . . Recycling Units 4 | . . . . . . . . . 4 . . . . . Scanalyzers . | . . . . . . . . . . . . . . . Garrison Access 2 | . . . . . 1 . . . . 1 . . . . Terminal Hacks 37 | . 6 . 1 . . 2 . 24 . 4 . . . . Record 12 | . . . 1 . . . . 11 . . . . . . Part Schematic 5 | . . . . . . . . 5 . . . . . . Robot Schematic 5 | . . . . . . . . 5 . . . . . . Robot Analysis 1 | . . . . . . 1 . . . . . . . . Prototype ID Bank 4 | . 1 . . . . . . 3 . . . . . . Branch Access Points 3 | . 1 . . . . 1 . . . 1 . . . . Unreport Threat 3 | . 3 . . . . . . . . . . . . . Locate Traps 3 | . 1 . . . . . . . . 2 . . . . Registered Components 1 | . . . . . . . . . . 1 . . . . Fabricator Hacks 3 | . . . . . . . . . 1 2 . . . . Network Status 1 | . . . . . . . . . 1 . . . . . Load Schematic 1 | . . . . . . . . . . 1 . . . . Build 1 | . . . . . . . . . . 1 . . . . Repair Station Hacks . | . . . . . . . . . . . . . . . Recycling Unit Hacks 1 | . . . . . . . . . 1 . . . . . Retrieve Components 1 | . . . . . . . . . 1 . . . . . Scanalyzer . | . . . . . . . . . . . . . . . Garrison Access Hacks . | . . . . . . . . . . . . . . . Unauthorized Hacks 23 | . 8 . . . 2 2 . . 3 8 . . . . Terminals 7 | . 3 . . . . 1 . . . 3 . . . . Track 1 | . 1 . . . . . . . . . . . . . Botnet 6 | . 2 . . . . 1 . . . 3 . . . . Fabricators 1 | . . . . . . . . . 1 . . . . . Download 1 | . . . . . . . . . 1 . . . . . Repair Stations . | . . . . . . . . . . . . . . . Recycling Units . | . . . . . . . . . . . . . . . Scanalyzers . | . . . . . . . . . . . . . . . Garrison Access 2 | . . . . . 1 . . . . 1 . . . . Jam 1 | . . . . . . . . . . 1 . . . . Eject 1 | . . . . . 1 . . . . . . . . . Data Cores Recovered 2 | . 1 . . . . 1 . . . . . . . . Used 2 | . 1 . . . . 1 . . . . . . . . Hacking Detections 14 | . 4 . . . 2 2 . . 2 4 . . . . Full Trace Events 3 | . . . . . 1 1 . . 1 . . . . . Feedback Events . | . . . . . . . . . . . . . . . Feedback Blocked . | . . . . . . . . . . . . . . . Robot Schematics Acquired 5 | . . . . . . . . 5 . . . . . . Robots Built . | . . . . . . . . . . . . . . . Matter . | . . . . . . . . . . . . . . . Time . | . . . . . . . . . . . . . . . Total Robot Build Rating . | . . . . . . . . . . . . . . . Part Schematics Acquired 6 | . . . . . . . . 5 1 . . . . . Parts Built 1 | . . . . . . . . . . 1 . . . . Matter 384 | . . . . . . . . . . 384 . . . . Time 204 | . . . . . . . . . . 204 . . . . Total Part Build Rating 8 | . . . . . . . . . . 8 . . . . Parts Repaired . | . . . . . . . . . . . . . . . Time . | . . . . . . . . . . . . . . . Parts Recycled . | . . . . . . . . . . . . . . . Recycled Matter . | . . . . . . . . . . . . . . . Retrieved Matter . | . . . . . . . . . . . . . . . Retrieved Components 9 | . . . . . . . . . 9 . . . . . Parts Scanalyzed . | . . . . . . . . . . . . . . . Part Schematics Acquired . | . . . . . . . . . . . . . . . Parts Damaged . | . . . . . . . . . . . . . . . Bothacking | -11 -10 -10 -10 -9 -8 -7 -7 -7 -6 -6 -6 -6 -6 -6 ------------ Run | Scr Mat Min Exi Min Mat Fac Low Dat Pro Fac Low Low Zio Dee Used RIF Installer . | . . . . . . . . . . . . . . . Robots Hacked . | . . . . . . . . . . . . . . . Non-combat . | . . . . . . . . . . . . . . . Combat . | . . . . . . . . . . . . . . . Robot Hacks Applied . | . . . . . . . . . . . . . . . Relay Couplers Released 2 | . . . . . 2 . . . . . . . . . Ejected 2 | . . . . . 2 . . . . . . . . . Robots Rewired 12 | . . . . . . 1 . . 11 . . . . . Allies Hacked . | . . . . . . . . . . . . . . . Hacks Repelled . | . . . . . . . . . . . . . . . Allies | -11 -10 -10 -10 -9 -8 -7 -7 -7 -6 -6 -6 -6 -6 -6 -------- Run | Scr Mat Min Exi Min Mat Fac Low Dat Pro Fac Low Low Zio Dee Total Allies 15 | . . . . 2 . 1 . . 12 . . . . . Largest Group 5 | . . . . 2 2 1 . . 5 5 . . . . Highest-Rated Group 172 | . . . . 42 42 16 . . 172 172 . . . . Highest-Rated Ally 94 | . . . . 31 31 16 . . 94 41 . . . . Total Orders . | . . . . . . . . . . . . . . . Ally Attacks 154 | . . . . . 13 21 . . 96 24 . . . . Total Damage 2945 | . . . . . 251 219 . . 1386 1089 . . . . Kills 15 | . . . . . 2 . . . 7 6 . . . . Allies Corrupted 1 | . . . . . . . . . . 1 . . . . Allies Melted . | . . . . . . . . . . . . . . . Intel | -11 -10 -10 -10 -9 -8 -7 -7 -7 -6 -6 -6 -6 -6 -6 ------- Run | Scr Mat Min Exi Min Mat Fac Low Dat Pro Fac Low Low Zio Dee Robot Analysis Total 1 | . . . . . . 1 . . . . . . . . Derelict Logs Recovered 5 | . . 1 . 1 . . . . 1 . 1 1 . . Drone Launches . | . . . . . . . . . . . . . . . Drone Recoveries . | . . . . . . . . . . . . . . . Exploration | -11 -10 -10 -10 -9 -8 -7 -7 -7 -6 -6 -6 -6 -6 -6 ------------- Run | Scr Mat Min Exi Min Mat Fac Low Dat Pro Fac Low Low Zio Dee Turns Passed 5213 | 51 537 91 190 259 352 606 30 65 661 532 187 310 757 585 Spaces Moved 4567 | 46 424 52 212 198 231 564 37 81 451 434 199 321 832 485 Core 12 | 12 . . . . . . . . . . . . . . Treads . | . . . . . . . . . . . . . . . Legs . | . . . . . . . . . . . . . . . Wheels 4555 | 34 424 52 212 198 231 564 37 81 451 434 199 321 832 485 Hover . | . . . . . . . . . . . . . . . Flight . | . . . . . . . . . . . . . . . Fastest Speed 50 | 50 90 90 90 80 80 80 80 80 80 80 80 90 80 90 Average Speed 86 | 86 96 90 90 82 82 80 80 80 81 80 85 90 89 90 Slowest Speed 100 | 100 100 90 90 90 90 90 80 80 90 90 90 90 90 90 Overloaded Moves . | . . . . . . . . . . . . . . . Propulsion Burnouts . | . . . . . . . . . . . . . . . Robots Hopped 1 | . . . . . . . . . . 1 . . . . Cave-ins Triggered . | . . . . . . . . . . . . . . . Exploration Rate (%) 43 | 4 77 18 62 51 31 21 7 62 54 15 37 61 85 62 Regions Visited 14 Branch Regions 10 Pre-discovered Areas 5 | . . . . 1 . . . 1 1 . . . 2 . Known Exits Taken 4 | . 1 . . . . 1 . . . 1 1 . . . Unknown Exits Taken 10 | 1 . 1 1 1 1 . 1 1 1 . . 1 1 . Scrap Searched 7 | . . . . . . . 1 . 1 . 2 1 2 . Spaces Dug 14 | . . . . . . . . . . 6 . . . 8 Terrain Destroyed 130 | . 11 18 . 50 . . . . . 13 . . . 38 Melee . | . . . . . . . . . . . . . . . Projectile 13 | . . . . . . . . . . . . . . 13 AOE 117 | . 11 18 . 50 . . . . . 13 . . . 25 Actions | -11 -10 -10 -10 -9 -8 -7 -7 -7 -6 -6 -6 -6 -6 -6 --------- Run | Scr Mat Min Exi Min Mat Fac Low Dat Pro Fac Low Low Zio Dee Total 5302 | 55 484 72 211 260 326 629 37 80 648 535 212 335 840 578 Wait 132 | . 11 . . 23 24 11 1 . 9 30 2 3 2 16 Move 4551 | 45 423 51 211 197 230 563 36 80 450 431 198 320 831 485 Hop 1 | . . . . . . . . . . 1 . . . . Pick Up 9 | 3 1 . . 1 . . . . . . . . . 4 Fast Attach 44 | 4 3 . . . 6 6 . . 6 5 2 . 3 9 Attach 5 | 1 . . . 1 . . . . . . . . 1 2 Detach 4 | . . . . . 1 . . . 1 . . . 1 1 Swap 16 | 1 2 4 . 1 . 2 . . . 3 . . . 3 Drop 36 | 1 3 . . . 3 6 . . 5 4 2 . 2 10 Fire 236 | . 33 13 . 23 34 33 . . 37 29 1 2 . 31 Melee . | . . . . . . . . . . . . . . . Ram 2 | . . . . . . . . . 1 1 . . . . Kick . | . . . . . . . . . . . . . . . Crush . | . . . . . . . . . . . . . . . Escape Stasis . | . . . . . . . . . . . . . . . Rewire 75 | . . . . . . 1 . . 74 . . . . . Trap . | . . . . . . . . . . . . . . . Miscellaneous 191 | . 8 4 . 14 28 7 . . 65 31 7 10 . 17 Route ------- -11/Scrapyard -10/Materials (discovered 4 exits: [*Mat x3] / *Min) -10/Mines -10/Exiles -9/Mines -8/Materials -7/Factory (discovered 4 exits: *Sto x2 / *Low x2) -7/Lower Caves -7/Data Miner -6/Proximity Caves -6/Factory (discovered 4 exits: *Low x2 / Ext x2) -6/Lower Caves -6/Lower Caves -6/Zion (discovered 2 exits: [*Dee] / [*Pro]) -6/Deep Caves (discovered 1 exit: [*Pro]) History --------- Turn | Location | Event 1 | -11/Scrapyard | Upgraded with Propulsion slot (x1) 1 | -11/Scrapyard | Upgraded with Weapon slot (x1) 7 | -11/Scrapyard | Discovered new exit (range 16) 52 | -11/Scrapyard | Entered Materials 206 | -10/Materials | Discovered new exit (range 8) 309 | -10/Materials | Build established: Mutant 340 | -10/Materials | Discovered new exit (range 3) 479 | -10/Materials | Discovered new exit (range 3) 535 | -10/Materials | Identified exit to Mines 589 | -10/Materials | Entered Mines 591 | -10/Mines | Reached level 2 622 | -10/Mines | Core integrity fell below 50% 635 | -10/Mines | Learned Materials interactive machine intel 676 | -10/Mines | Deemed a non-threat by the Exiles lab entrance 677 | -10/Mines | Discovered new exit (range 5) 680 | -10/Mines | Entered Exiles 680 | -10/Exiles | Found Exiles lab abandoned 682 | -10/Exiles | Reached level 3 683 | -10/Exiles | Upgraded with Weapon slot (x2) 860 | -10/Exiles | Discovered new exit (range 14) 870 | -10/Exiles | Entered Mines 871 | -9/Mines | Assembled infested the area 1021 | -9/Mines | Destroyed 7 combat bots 1060 | -9/Mines | Learned location of Storage (-7) 1104 | -9/Mines | Discovered new exit (range 6) 1129 | -9/Mines | Entered Materials 1129 | -8/Materials | Accompanied by 2 allies 1130 | -8/Materials | Loaded intel: 19 interactive machine locations 1131 | -8/Materials | Reached level 4 1134 | -8/Materials | Led the pair of lost Derelicts to an unsafe place 1155 | -8/Materials | Core integrity fell below 50% 1264 | -8/Materials | Reached level 5 1327 | -8/Materials | Upgraded with Weapon slot (x1) 1477 | -8/Materials | Discovered new exit (range 5) 1481 | -8/Materials | Entered Factory 1483 | -7/Factory | Reached level 6 1725 | -7/Factory | Discovered new exit (range 4) 1810 | -7/Factory | Reached level 7 1863 | -7/Factory | Identified exit to Storage 1863 | -7/Factory | Identified exit to Lower Caves 1876 | -7/Factory | Build established: Tank 2005 | -7/Factory | Reached level 8 2010 | -7/Factory | Upgraded with Utility slot (x1) 2010 | -7/Factory | Upgraded with Weapon slot (x1) 2087 | -7/Factory | Entered Lower Caves 2109 | -7/Lower Caves | A Derelict revealed a hidden shortcut to meet someone special 2117 | -7/Lower Caves | Entered Data Miner 2117 | -7/Data Miner | Discovered new exit (range 6) 2133 | -7/Data Miner | Met Data Miner 2150 | -7/Data Miner | Learned location of Section 7 (-2) 2150 | -7/Data Miner | Acquired the access code to Warlord's prototype stash 2160 | -7/Data Miner | Received God Mode back door access code from Data Miner 2182 | -7/Data Miner | Entered Proximity Caves 2184 | -6/Proximity Caves | Reached level 9 2233 | -6/Proximity Caves | Escorted by Enhanced Grunt 2241 | -6/Proximity Caves | Core integrity fell below 50% 2309 | -6/Proximity Caves | Snuck into a huge 0b10 base via the rear entrance 2313 | -6/Proximity Caves | Build established: Executioner 2326 | -6/Proximity Caves | Reached level 10 2398 | -6/Proximity Caves | Upgraded with Utility slot (x1) 2495 | -6/Proximity Caves | Spotted B-75 Beast 2506 | -6/Proximity Caves | Destroyed B-75 Beast 2598 | -6/Proximity Caves | Reached level 11 2638 | -6/Proximity Caves | Discovered new exit (range 15) 2843 | -6/Proximity Caves | Entered Factory 2843 | -6/Factory | Accompanied by 5 allies 2845 | -6/Factory | Reached level 12 2893 | -6/Factory | Identified exit to Lower Caves 2893 | -6/Factory | Identified exit to Extension 2915 | -6/Factory | Reached level 13 3161 | -6/Factory | Reached level 14 3178 | -6/Factory | Fabricated Exp. Transmission Jammer (x1) 3193 | -6/Factory | First assault squad dispatched 3203 | -6/Factory | Upgraded with Power slot (x1) 3244 | -6/Factory | Reached level 15 3301 | -6/Factory | Core integrity fell below 50% 3313 | -6/Factory | Incoming assault squad redirected 3313 | -6/Factory | Core integrity fell below 20% 3375 | -6/Factory | Entered Lower Caves 3377 | -6/Lower Caves | Reached level 16 3378 | -6/Lower Caves | Upgraded with Weapon slot (x1) 3437 | -6/Lower Caves | Encountered a Warlord checkpoint 3460 | -6/Lower Caves | Identified exit to Lower Caves 3562 | -6/Lower Caves | Entered another Lower Caves area 3855 | -6/Lower Caves | Discovered new exit (range 7) 3872 | -6/Lower Caves | Entered Zion 3874 | -6/Zion | Reached level 17 3887 | -6/Zion | Acquired unknown access codes intercepted by a Zionite 3925 | -6/Zion | Visited the Megawrench Repair Shop 3925 | -6/Zion | Megawrench repaired 5 parts 3933 | -6/Zion | Discovered new exit (range 14) 3999 | -6/Zion | System corruption cleaned by Quarantine Array 4312 | -6/Zion | Upgraded with Propulsion slot (x1) 4591 | -6/Zion | Build established: Derelict-Executioner 4611 | -6/Zion | Opened final containment barrier to the Deep Caves 4624 | -6/Zion | Discovered new exit (range 5) 4626 | -6/Zion | Saw the warning signs outside the Deep Caves entrance 4629 | -6/Zion | Entered Deep Caves 4697 | -6/Deep Caves | Attacked by Z-Imprinter 4742 | -6/Deep Caves | Reached level 18 4742 | -6/Deep Caves | Destroyed Z-Imprinter 4780 | -6/Deep Caves | Found Prototype Device 4780 | -6/Deep Caves | Identified Zio. Metafield Generator 4841 | -6/Deep Caves | Z-Facility disabled 5065 | -6/Deep Caves | Build established: Scavenger-Executioner 5152 | -6/Deep Caves | Discovered new exit (range 6) 5214 | -6/Deep Caves | Destroyed by XU-R67(z) with Zionite Laser-S Last Messages --------------- 04828_ 9M-KSD(o) is busy at the terminal. 04841_ Z-Power explodes. 04841_ Zio. Laser-M destroyed. 04841_ Destroyed Zio. Laser-M. 04854_ Acquired Beamcaster. 05042_ as-77094 destroyed. 05042_ Switching to secondary target: as-05490. 05042_ Machine disabled. 05046_ as-23041 destroyed. 05046_ Switching to secondary target: as-05490. 05046_ as-05490 destroyed. 05052_ Acquired 28 matter. 05055_ Used Protomatter to restore core integrity (+33, depleted) 05056_ Acquired 13 matter. 05152_ EXIT=FOUND 05205_ Dropped Beamcaster. 05205_ Acquired Prototype Energy Gun. 05205_ Identified Zio. Phaser-S. 05206_ Wheel destroyed. 05212_ ZP-IWS(z) misfires. Map ----- +----------------------------------------------------+ | | | | | | | | | | | | | | | | | | | ?????????????????????????????????????????????????? | | ?????????????????????????????????????????????????? | | #####????????????????????????????????????????????? | | #????????????????????????????????????????????? | | ### ########??????????????????#???##?????????????? | | ??# #??????##????????? #### ????????????? | | ?## #?????# ##???????? ????????????? | | ## ## #??### #??????? ???????????? | | ## #?## #??????? zzz ???????????? | | # ## ### #??????? ??????????? | | # ### #??????; ??????????? | | # ####?# #?????? z ?????????? | | #???# ## ##??#### ?????????? | | #???# ########??## ;z ?????????? | | # ###???# #?????????#[ ????? | | ###?????# ##??####??# !; ??? | | #???????## #### ##?###@; "? | | #????????## #???#;# "? | | #?????????# #???#; "" | | #????####?## #??##;# "" | | #????# ##?## #??#;;# "" | | ####?# #### #### # " | | ## ### ## ## " | | ## "" " | | ## | | ####### ### | | # ##????## #?### | | ## #####?## #???# | | ?# #??## ##????# | | ?## ## #???###?????# | | ??## ### #????????##### | | ##### ####?# #???????## ## | | #????# ######??# ## | | ##### ##???# #??# # | | ????# ##??##### #?## | | ????# #????### ### | | ???## #????# | | ???# #???# | | ???# ##?# | | ???## ### #### | | ##### ##??# | +----------------------------------------------------+ Best States ------------- Heat Dissipation 127 Energy Generation 64 Energy Capacity 550 Matter Stores 300 Matter Capacity 300 Sight Range 16 Robot Scan Range 22 Terrain Scan Range 14 Terrain Scan Density 10 Jamming Range 22 Resistance: KI 15 Resistance: TH 15 Resistance: EX 20 Phase Shifting 15 Evasion (%) 57 Targeting Accuracy 5 Core Analysis 6 Item Schematics ----------------- Combat Drone Bay | -7/Data Miner | Free Lgt. Regenerative Plating | -7/Data Miner | Free Triangulator | -7/Data Miner | Free Exp. Transmission Jammer | -7/Data Miner | Free Kinetic Spear | -7/Data Miner | Free Phase Gun | -6/Proximity Caves | Downloaded Robot Schematics ------------------ S-27 Virus | -7/Data Miner | Free G-50 Soldier | -7/Data Miner | Free H-66 Slayer | -7/Data Miner | Free P-70 Sage | -7/Data Miner | Free I-36 Angel | -7/Data Miner | Free Fabricated ------------ Exp. Transmission Jammer | x1 | -6/Factory Alien Tech Used ----------------- None Achievements -------------- None Challenges ------------ None RPGLIKE | -11 -10 -10 -10 -9 -8 -7 -7 -7 -6 -6 -6 -6 -6 -6 --------- Run | Scr Mat Min Exi Min Mat Fac Low Dat Pro Fac Low Low Zio Dee Levels Raised 17 | . . 1 1 . 2 3 . . 3 4 1 . 1 1 XP Earned 28508 | 3000 1295 1550 200 775 3244 3483 500 650 3774 6963 658 764 604 1048 XP Spent 28455 | 2860 . . 3110 . 2985 4250 . . 3240 3915 2350 . 1970 3775 Upgrades 71 | 10 . . 6 . 9 12 . . 8 10 2 . 3 11 Power Slot 1 | . . . . . . . . . . 1 . . . . Propulsion Slot 2 | 1 . . . . . . . . . . . . 1 . Utility Slot 2 | . . . . . . 1 . . 1 . . . . . Weapon Slot 6 | 1 . . 2 . 1 1 . . . . 1 . . . Core Integrity 9 | . . . 2 . 1 1 . . . . . . . 5 Heat Dissipation 17 | 3 . . . . 3 3 . . 4 2 1 . 1 . Energy Generation 3 | 1 . . 1 . . . . . . 1 . . . . Energy Storage 4 | 1 . . . . . 1 . . . 2 . . . . Mass Support 6 | . . . . . . 2 . . 1 2 . . . 1 Inventory Capacity 3 | 1 . . . . . . . . . . . . . 2 Ranged Accuracy 5 | 2 . . 1 . 1 . . . . . . . 1 . KI Resistance % 3 | . . . . . 1 1 . . 1 . . . . . TH Resistance % 3 | . . . . . 1 1 . . 1 . . . . . EX Resistance % 4 | . . . . . 1 1 . . . 2 . . . . KI Damage % 3 | . . . . . . . . . . . . . . 3 Protomatter Created 1424 | . 60 20 . 28 253 55 . . 312 443 . 69 . 184 Integrity Restored 4063 | . 138 60 . 288 621 165 . . 1398 682 159 200 . 352 Core 3565 | . 111 60 . 288 621 165 . . 1128 654 159 32 . 347 Parts 498 | . 27 . . . . . . . 270 28 . 168 . 5 Protomatter Decayed 719 | . 13 . . 93 105 . . . 146 337 . . . 25 Game ------ Seed CooledBattleReplicator Manual? 0 Play Time 01:13:27 Cumulative 466.7 hours Start 2019.12.22 @ 10:54:46 End 2019.12.22 @ 12:11:09 Sessions 1 Manual Loads 0 Difficulty Rogue Special Mode Winter2019/RPGLIKE Game No. 224 Rogue 224 Adventurer 0 Explorer 0 Win Type - Total 31 Types 18/1/6/6/0/0/0 Lore% 94 Gallery% 92 Achievement% 80 Wizard Run 0 Options --------- ASCII 0 Keyboard 0 Movement Vi Keybinds 0 Fullscreen 1 Font 18/SmallcapsGlow Map View 76x50 Tactical HUD 1 Map Filters NONE Filters NONE Steam 0 RUN: b55b41d0-7a70-4c1f-9ac1-55df8f76021a